bitfinex-derivatives/quotes_BTCF0:USTF0_20240925
["timestamp","ask_amount","ask_price","bid_price","bid_amount"]
[1727301824856,0.069725,63515.0,63514.0,0.078726]
[1727301825158,0.063725,63515.0,63514.0,0.078726]
[1727301825357,0.07873,63511.0,63510.0,0.0313]
[1727301825550,0.0037,63518.0,63510.0,0.0313]
[1727301825748,0.3608,63519.0,63515.0,0.078724]
[1727301825749,0.078724,63516.0,63515.0,0.078724]
[1727301827750,0.078724,63516.0,63515.0,0.082724]
[1727301828156,0.258724,63516.0,63515.0,0.004]
[1727301828455,0.078724,63516.0,63515.0,0.082725]
[1727301828655,0.078724,63516.0,63515.0,0.004]
[1727301829058,0.258724,63516.0,63515.0,0.004]
[1727301829254,0.258724,63516.0,63515.0,0.005]
[1727301830055,0.809768,63516.0,63515.0,0.005]
[1727301830868,2.988492,63516.0,63515.0,0.005]
[1727301831059,2.988492,63516.0,63504.0,0.0037]
[1727301831060,0.078737,63505.0,63504.0,0.0037]
[1727301831262,0.3608,63505.0,63498.0,0.18]
[1727301831476,0.3608,63505.0,63504.0,0.078739]
[1727301832155,0.3668,63505.0,63504.0,0.079739]
[1727301832470,0.3708,63505.0,63504.0,0.079739]
[1727301832861,0.3758,63505.0,63504.0,0.079739]
[1727301833467,0.454537,63505.0,63504.0,0.001]
[1727301833865,0.459537,63505.0,63504.0,0.002]
[1727301834480,0.455537,63505.0,63504.0,0.002]
[1727301835272,0.537274,63505.0,63504.0,0.002]
[1727301835473,0.717274,63505.0,63504.0,0.002]
[1727301835777,0.749574,63505.0,63504.0,0.002]
[1727301835977,0.078754,63492.0,63491.0,0.0037]
[1727301836183,0.9016,63492.0,63485.0,0.0302]
[1727301836377,0.078755,63491.0,63489.0,0.078757]
[1727301837077,0.073756,63490.0,63489.0,0.078757]
[1727301837681,0.071762,63485.0,63484.0,0.00236249]
[1727301837874,0.432562,63485.0,63484.0,0.00236249]
[1727301838275,0.425562,63485.0,63484.0,0.00236249]
[1727301838607,0.420562,63485.0,63484.0,0.00236249]
[1727301839184,0.420562,63485.0,63484.0,0.00836249]
[1727301839393,0.499324,63485.0,63484.0,0.00836249]
[1727301839581,0.499324,63485.0,63484.0,0.006]
[1727301839781,0.680324,63485.0,63484.0,0.006]
[1727301839983,0.712124,63485.0,63484.0,0.006]
[1727301840286,0.421562,63485.0,63484.0,0.006]
[1727301840497,0.601562,63485.0,63484.0,0.006]
[1727301841383,0.421562,63485.0,63484.0,0.006]
[1727301841588,0.601562,63485.0,63484.0,0.006]
[1727301843001,0.3618,63485.0,63484.0,0.084763]
[1727301844090,0.440562,63485.0,63484.0,0.006]
[1727301845135,0.519324,63485.0,63484.0,0.006]
[1727301845529,0.699324,63485.0,63484.0,0.006]
[1727301848195,0.338524,63485.0,63484.0,0.006]
[1727301848485,1.060124,63485.0,63484.0,0.006]
[1727301848897,0.078778,63472.0,63471.0,0.0037]
[1727301849089,0.3608,63472.0,63468.0,0.0635]
[1727301849278,0.18,63470.0,63469.0,0.078782]
[1727301849481,0.439578,63472.0,63469.0,0.078782]
[1727301849690,0.439578,63472.0,63468.0,0.0635]
[1727301849691,0.18,63470.0,63468.0,0.0635]
[1727301849886,0.078782,63469.0,63468.0,0.0635]
[1727301850101,0.069782,63469.0,63468.0,0.0635]
[1727301850891,0.069782,63469.0,63468.0,0.0725]
[1727301851088,0.070782,63469.0,63468.0,0.0725]
[1727301851590,0.070782,63469.0,63468.0,0.009]
[1727301852686,0.250782,63469.0,63468.0,0.009]
[1727301853195,0.249782,63469.0,63468.0,0.009]
[1727301853398,0.078787,63466.0,63463.0,0.078789]
[1727301853697,0.5408,63464.0,63463.0,0.12579087]
[1727301853890,0.5408,63464.0,63463.0,0.078789]
[1727301854192,0.5408,63464.0,63462.0,0.0325]
[1727301854494,0.078792,63461.0,63460.0,0.11150187]
[1727301854893,0.078792,63461.0,63460.0,0.0645]
[1727301855396,0.078792,63461.0,63460.0,0.11150187]
[1727301855592,0.078792,63461.0,63460.0,0.0645]
[1727301856499,0.078792,63461.0,63460.0,0.11150187]
[1727301857204,0.001,63461.0,63455.0,0.04700187]
[1727301857499,0.3608,63456.0,63455.0,0.078799]
[1727301858404,0.3608,63456.0,63455.0,0.12580087]
[1727301858608,0.3608,63456.0,63455.0,0.078799]
[1727301859406,0.3608,63456.0,63455.0,0.25996821]
[1727301859901,0.3618,63456.0,63455.0,0.25996821]
[1727301860289,0.3628,63456.0,63455.0,0.25994923]
[1727301860599,0.3628,63456.0,63455.0,0.18146771]
[1727301862902,0.3628,63456.0,63455.0,0.078799]
[1727301862903,0.621598,63456.0,63455.0,0.078799]
[1727301863099,0.621598,63456.0,63454.0,0.07834079]
[1727301863100,0.078799,63455.0,63454.0,0.07834079]
[1727301863395,0.078799,63455.0,63454.0,0.10297377]
[1727301863598,0.078799,63455.0,63454.0,0.10298686]
[1727301864698,0.079799,63455.0,63454.0,0.10298686]
[1727301865091,0.080799,63455.0,63454.0,0.10298686]
[1727301865397,0.182,63455.0,63453.0,0.07842243]
[1727301865596,0.182,63455.0,63454.0,0.07842243]
[1727301865597,0.260799,63455.0,63454.0,0.07842243]
[1727301865804,0.078802,63453.0,63452.0,0.07842243]
[1727301866103,0.078802,63453.0,63452.0,0.18162955]
[1727301866297,0.078802,63453.0,63452.0,0.18160252]
[1727301866491,0.078802,63453.0,63452.0,0.10318009]
[1727301866692,0.182,63455.0,63452.0,0.10318009]
[1727301866889,0.182,63455.0,63454.0,0.07847577]
[1727301867095,0.182,63455.0,63454.0,0.18154839]
[1727301867294,0.181,63455.0,63454.0,0.18154839]
[1727301867497,0.5418,63455.0,63454.0,0.10307262]
[1727301867696,0.18,63460.0,63454.0,0.18187362]
[1727301867894,0.258793,63460.0,63458.0,0.07848926]
[1727301868092,0.56383443,63464.0,63459.0,0.07848926]
[1727301868289,0.56383443,63464.0,63463.0,0.062789]
[1727301868491,0.07879,63463.0,63461.0,0.07848926]
[1727301868698,0.07879,63463.0,63462.0,0.07848926]
[1727301868898,0.078791,63462.0,63458.0,0.09417783]
[1727301869094,0.5408,63464.0,63461.0,0.07850327]
[1727301869303,0.3608,63464.0,63463.0,0.07879]
[1727301869503,0.31349161,63464.0,63463.0,0.18160516]
[1727301869799,0.31349161,63464.0,63463.0,0.21210516]
[1727301870403,0.18,63468.0,63463.0,0.21210516]
[1727301870404,0.078786,63467.0,63463.0,0.21210516]
[1727301870610,0.3833247,63468.0,63466.0,0.07852325]
[1727301870996,0.078785,63467.0,63466.0,0.07852325]
[1727301871197,0.078785,63467.0,63466.0,0.18061785]
[1727301871392,0.078785,63467.0,63466.0,0.1020946]
[1727301871593,0.258785,63467.0,63466.0,0.18063547]
[1727301871799,0.3658,63468.0,63466.0,0.18063547]
[1727301871994,0.00104001,63474.0,63467.0,1.13585767]
[1727301872194,0.3608,63477.0,63468.0,0.22359267]
[1727301872195,0.3608,63469.0,63468.0,0.22359267]
[1727301872394,0.078781,63471.0,63468.0,0.10212147]
[1727301872604,0.078781,63471.0,63469.0,0.19637908]
[1727301872907,0.078781,63471.0,63470.0,0.1018982]
[1727301873108,0.619581,63471.0,63470.0,0.1018982]
[1727301873906,0.627581,63471.0,63470.0,0.1018982]
[1727301874208,0.627581,63471.0,63470.0,0.1806792]
[1727301874209,0.5568,63471.0,63470.0,0.1806792]
[1727301874513,0.017,63471.0,63470.0,0.27493681]
[1727301874703,0.009,63471.0,63470.0,0.7214792]
[1727301875010,0.019,63471.0,63470.0,1.91553932]
[1727301875209,0.019,63471.0,63470.0,0.77473932]
[1727301875404,0.019,63471.0,63470.0,1.37473932]
[1727301875604,0.019,63471.0,63470.0,0.77473932]
[1727301875800,0.019,63471.0,63470.0,1.37473932]
[1727301876104,0.019,63471.0,63470.0,0.77473932]
[1727301876307,0.019,63471.0,63470.0,1.37473932]
[1727301876915,0.019,63471.0,63470.0,0.30205932]
[1727301877206,0.019,63471.0,63470.0,0.30202477]
[1727301877407,0.019,63471.0,63470.0,0.18055784]
[1727301877613,0.27778,63471.0,63470.0,0.19605543]
[1727301877814,0.078782,63470.0,63469.0,0.07857297]
[1727301878011,0.078782,63469.0,63466.0,0.078786]
[1727301878218,0.078782,63469.0,63467.0,0.10206839]
[1727301878405,0.078782,63469.0,63468.0,0.10206839]
[1727301879413,0.078782,63469.0,63468.0,0.18064804]
[1727301879717,0.082782,63469.0,63468.0,0.18064804]
[1727301879906,0.009,63470.0,63469.0,0.078782]
[1727301880209,0.009,63470.0,63469.0,0.18085039]
[1727301880605,0.54172,63471.0,63469.0,0.25942389]
[1727301880798,0.5408,63471.0,63469.0,0.1573555]
[1727301881414,0.5408,63471.0,63470.0,0.1573545]
[1727301881713,0.5408,63471.0,63470.0,0.078781]
[1727301882108,0.078781,63470.0,63469.0,0.0785735]
[1727301882304,0.5418,63471.0,63467.0,0.07857009]
[1727301882616,0.078785,63467.0,63466.0,0.07857009]
[1727301882802,0.18,63467.0,63464.0,0.07857009]
[1727301883008,0.439587,63465.0,63464.0,0.07857009]
[1727301883210,0.439587,63465.0,63464.0,0.18080355]
[1727301883411,0.439587,63465.0,63463.0,0.07857009]
[1727301883608,0.439587,63465.0,63464.0,0.07857009]
[1727301883810,0.439587,63465.0,63464.0,0.25957822]
[1727301884007,0.3728,63471.0,63469.0,0.078781]
[1727301884320,0.08578,63471.0,63470.0,0.06285723]
[1727301884616,0.08578,63471.0,63469.0,0.078781]
[1727301884617,0.08578,63471.0,63469.0,0.14163823]
[1727301884808,0.26578,63471.0,63468.0,0.06285723]
[1727301885013,0.078782,63469.0,63468.0,0.06285723]
[1727301885413,0.078782,63469.0,63467.0,0.06285723]
[1727301885603,0.078782,63469.0,63467.0,0.078784]
[1727301886410,0.092782,63469.0,63467.0,0.078784]
[1727301886917,0.09157164,63469.0,63468.0,0.078783]
[1727301887122,0.012,63469.0,63468.0,0.078783]
[1727301888021,0.07480641,63469.0,63468.0,0.078783]
[1727301888517,0.06780641,63469.0,63468.0,0.078783]
[1727301888721,0.07580641,63469.0,63468.0,0.078783]
[1727301888913,0.07080641,63469.0,63468.0,0.078783]
[1727301889113,0.07680641,63469.0,63468.0,0.078783]
[1727301889313,0.07681388,63469.0,63468.0,0.078783]
[1727301889514,0.014,63469.0,63468.0,0.078783]
[1727301889714,0.07681395,63469.0,63468.0,0.078783]
[1727301889927,0.014,63469.0,63468.0,0.078783]
[1727301890113,0.07681398,63469.0,63468.0,0.078783]
[1727301890418,0.07681355,63469.0,63468.0,0.078783]
[1727301890814,0.014,63469.0,63468.0,1.39551239]
[1727301891120,0.014,63469.0,63468.0,1.151463]
[1727301891319,0.014,63469.0,63468.0,1.21551194]
[1727301892314,0.014,63469.0,63468.0,1.21551182]
[1727301893122,0.014,63469.0,63468.0,1.29429482]
[1727301893413,0.014,63469.0,63468.0,1.21551182]
[1727301893617,0.014,63469.0,63468.0,1.29429482]
[1727301893820,0.0037,63475.0,63474.0,0.078776]
[1727301894025,0.36184001,63478.0,63477.0,0.078772]
[1727301894326,0.3608,63478.0,63477.0,0.078772]
[1727301895320,0.078765,63483.0,63482.0,0.078766]
[1727301896519,0.092765,63483.0,63482.0,0.079766]
[1727301897319,0.014,63483.0,63482.0,0.079766]
[1727301897624,0.028,63483.0,63482.0,0.080766]
[1727301897828,0.028,63483.0,63482.0,0.260766]
[1727301898022,0.028,63483.0,63482.0,0.74746413]
[1727301898223,0.014,63483.0,63482.0,0.78780704]
[1727301898421,0.028,63483.0,63482.0,0.76436465]
[1727301898730,0.028,63483.0,63482.0,0.76436337]
[1727301899028,0.019,63483.0,63482.0,0.76336337]
[1727301899325,0.019,63483.0,63482.0,0.72395945]
[1727301899531,0.005,63483.0,63482.0,0.72295945]
[1727301900134,0.006,63483.0,63482.0,0.72795945]
[1727301900519,0.0037,63491.0,63490.0,0.078756]
[1727301900520,0.1837,63491.0,63490.0,0.078756]
[1727301900824,0.439552,63494.0,63493.0,0.078752]
[1727301901124,0.3608,63494.0,63493.0,0.078752]
[1727301901325,0.06281355,63499.0,63498.0,0.078746]
[1727301901530,0.082442,63502.0,63493.0,0.439552]
[1727301901531,0.14155555,63502.0,63501.0,0.078742]
[1727301901730,0.078742,63502.0,63501.0,0.078742]
[1727301902432,0.26325803,63505.0,63496.0,0.078748]
[1727301902638,0.2413,63505.0,63492.0,0.0308]
[1727301902932,0.3608,63506.0,63501.0,0.18]
[1727301903428,1.579694,63508.0,63501.0,0.18]
[1727301903631,1.578734,63508.0,63501.0,0.18]
[1727301903931,1.578734,63508.0,63507.0,0.078735]
[1727301904336,0.012,63502.0,63501.0,0.001]
[1727301904633,0.022,63502.0,63501.0,0.080742]
[1727301904835,0.202,63502.0,63501.0,0.080742]
[1727301905034,0.631541,63502.0,63501.0,0.001]
[1727301905234,0.631541,63502.0,63488.0,0.078757]
[1727301905235,1.01324,63502.0,63488.0,0.078757]
[1727301905531,1.01324,63502.0,63486.0,0.0306]
[1727301905532,0.18,63490.0,63489.0,0.078757]
[1727301905725,0.5408,63490.0,63486.0,0.078761]
[1727301905919,0.18,63490.0,63489.0,0.078757]
[1727301907826,0.5538,63490.0,63489.0,0.079757]
[1727301908332,0.632556,63490.0,63489.0,0.001]
[1727301908538,0.626556,63490.0,63489.0,0.001]
[1727301908725,0.635556,63490.0,63489.0,0.002]
[1727301910432,1.05485907,63490.0,63474.0,0.0037]
[1727301910741,1.05485907,63490.0,63464.0,0.33096344]
[1727301910742,0.078769,63480.0,63478.0,0.078771]
[1727301910927,0.14143132,63480.0,63478.0,0.078771]
[1727301911332,0.078771,63478.0,63474.0,0.078776]
[1727301911524,0.14143332,63478.0,63474.0,0.092776]
[1727301911732,0.06266232,63477.0,63474.0,0.092776]
[1727301911928,0.14143432,63477.0,63474.0,0.092776]
[1727301912135,0.13743432,63477.0,63474.0,0.084776]
[1727301912434,0.13743432,63477.0,63474.0,0.078776]
[1727301912435,0.18,63475.0,63474.0,0.078776]
[1727301912829,0.18,63475.0,63474.0,0.086776]
[1727301913743,0.258775,63475.0,63474.0,0.086776]
[1727301914239,0.258775,63475.0,63474.0,0.012]
[1727301914831,0.259775,63475.0,63474.0,0.012]
[1727301915033,0.259775,63475.0,63474.0,0.007]
[1727301915342,0.3540614,63475.0,63474.0,0.007]
[1727301915546,0.3550614,63475.0,63474.0,0.007]
[1727301915837,0.33955,63475.0,63474.0,0.007]
[1727301916029,0.078781,63470.0,63467.0,0.04711722]
[1727301916229,0.3608,63468.0,63464.0,0.04948066]
[1727301916439,0.18,63466.0,63464.0,0.00236344]
[1727301916641,0.078787,63465.0,63464.0,0.00236344]
[1727301916842,0.258787,63465.0,63464.0,0.00236344]
[1727301917536,0.078791,63462.0,63461.0,0.04711722]
[1727301917727,0.258787,63465.0,63458.0,0.04711722]
[1727301917933,0.5408,63459.0,63457.0,0.12591422]
[1727301918539,0.5408,63459.0,63458.0,0.078796]
[1727301919846,0.3618,63459.0,63458.0,0.258796]
[1727301920540,0.3618,63459.0,63458.0,0.078796]
[1727301921335,0.3608,63459.0,63458.0,0.078796]
[1727301921545,0.3618,63459.0,63458.0,0.078796]
[1727301926244,0.001,63459.0,63458.0,0.078796]
[1727301927145,0.001,63459.0,63458.0,1.331556]
[1727301927551,0.001,63459.0,63458.0,0.078796]
[1727301927853,0.001,63459.0,63458.0,1.151556]
[1727301928156,0.001,63459.0,63458.0,0.078796]
[1727301928452,0.001,63459.0,63458.0,1.151556]
[1727301928655,0.001,63459.0,63458.0,0.078796]
[1727301928854,0.001,63459.0,63458.0,1.151556]
[1727301929150,0.001,63459.0,63458.0,1.230352]
[1727301929342,0.001,63459.0,63458.0,0.630352]
[1727301929542,0.0037,63466.0,63465.0,0.078787]
[1727301929748,0.078781,63470.0,63458.0,0.439596]
[1727301929749,0.07982101,63470.0,63458.0,0.439596]
[1727301929950,0.078781,63470.0,63458.0,0.439596]
[1727301930147,0.078781,63470.0,63468.0,0.078783]
[1727301930343,0.078781,63470.0,63469.0,0.078782]
[1727301930543,0.3608,63473.0,63469.0,0.078782]
[1727301930745,0.3608,63473.0,63464.0,0.3608]
[1727301930746,0.078782,63470.0,63464.0,0.3608]
[1727301930961,0.18,63468.0,63464.0,0.3608]
[1727301931252,0.18,63468.0,63461.0,0.04711722]
[1727301931253,0.258783,63468.0,63467.0,0.078785]
[1727301932446,0.263783,63468.0,63467.0,0.078785]
[1727301933052,0.267783,63468.0,63467.0,0.078785]
[1727301933252,0.078788,63465.0,63464.0,0.078788]
[1727301933551,0.258788,63465.0,63464.0,0.078788]
[1727301933854,0.07879,63463.0,63462.0,0.04711722]
[1727301934046,0.078793,63460.0,63459.0,0.04711722]
[1727301934250,0.078794,63459.0,63457.0,0.40791722]
[1727301934458,0.18,63458.0,63457.0,0.3608]
[1727301934648,0.18,63458.0,63457.0,0.439597]
[1727301935147,0.179,63458.0,63457.0,0.439597]
[1727301935556,0.18,63458.0,63457.0,0.50341996]
[1727301936153,0.18,63458.0,63457.0,0.50441996]
[1727301936551,0.18,63458.0,63457.0,0.441597]
[1727301937964,0.001,63458.0,63457.0,0.441597]
[1727301938549,0.001,63458.0,63457.0,0.52016854]
[1727301938755,0.001,63458.0,63457.0,0.441597]
[1727301939456,0.001,63458.0,63457.0,0.48872779]
[1727301939662,0.001,63458.0,63457.0,0.441597]
[1727301939850,0.001,63458.0,63457.0,0.48875314]
[1727301940051,0.001,63458.0,63457.0,0.441597]
[1727301941665,0.001,63458.0,63457.0,0.50443806]
[1727301942159,0.001,63458.0,63457.0,0.441597]
[1727301942459,0.001,63458.0,63457.0,0.50443806]
[1727301943551,0.001,63458.0,63457.0,0.002]
[1727301943552,0.338592,63458.0,63457.0,0.002]
[1727301943756,0.338592,63458.0,63456.0,0.04723241]
[1727301943757,0.078797,63457.0,63456.0,0.04723241]
[1727301944058,0.078799,63455.0,63454.0,0.04723241]
[1727301945360,0.078801,63454.0,63453.0,0.04723241]
[1727301945554,0.18,63457.0,63453.0,0.04723241]
[1727301945763,0.078801,63454.0,63453.0,0.04723241]
[1727301945955,0.078801,63454.0,63453.0,0.10257172]
[1727301946870,0.079801,63454.0,63453.0,0.10257172]
[1727301947365,0.079801,63454.0,63453.0,0.10256796]
[1727301947963,0.080801,63454.0,63453.0,0.10256796]
[1727301949570,0.080801,63454.0,63453.0,0.18125628]
[1727301950073,0.080801,63454.0,63453.0,0.10256796]
[1727301950670,0.080801,63454.0,63453.0,0.18124777]
[1727301951565,0.080801,63454.0,63453.0,0.26004977]
[1727301952156,0.080801,63454.0,63453.0,0.25992837]
[1727301952358,0.080801,63454.0,63453.0,0.1812566]
[1727301952868,0.002,63454.0,63453.0,0.1812566]
[1727301957070,0.002,63454.0,63453.0,0.078802]
[1727301957257,0.002,63454.0,63453.0,0.18117591]
[1727301957868,0.002,63454.0,63453.0,0.25997791]
[1727301958166,0.002,63454.0,63453.0,0.65531951]
[1727301958367,0.002,63454.0,63453.0,0.54197591]
[1727301958556,0.002,63454.0,63453.0,0.60604014]
[1727301958972,0.002,63454.0,63453.0,0.85588573]
[1727301959167,0.20212759,63464.0,63463.0,0.07879]
[1727301959373,0.36172,63465.0,63464.0,0.078788]
[1727301959561,0.3608,63465.0,63464.0,0.25950335]
[1727301959962,0.02244245,63466.0,63465.0,0.078787]
[1727301960257,0.620497,63473.0,63465.0,0.10178749]
[1727301960258,0.078782,63470.0,63465.0,0.10178749]
[1727301960463,0.18,63469.0,63468.0,0.078782]
[1727301960866,0.619577,63473.0,63472.0,0.078778]
[1727301961069,0.439577,63473.0,63472.0,0.078778]
[1727301961668,0.3608,63473.0,63472.0,0.078778]
[1727301961864,0.3608,63473.0,63472.0,0.258778]
[1727301962069,0.3828,63473.0,63472.0,0.258778]
[1727301962372,0.0037,63482.0,63472.0,1.41996725]
[1727301962575,0.0037,63485.0,63484.0,0.078763]
[1727301962768,0.0042,63500.0,63486.0,0.18]
[1727301962769,0.0037,63494.0,63486.0,0.18]
[1727301963078,0.0037,63499.0,63498.0,0.078746]
[1727301963263,0.0037,63499.0,63493.0,0.3608]
[1727301963264,0.18,63499.0,63494.0,0.14157638]
[1727301963464,0.078743,63501.0,63493.0,0.3608]
[1727301963465,0.18,63495.0,63493.0,0.3608]
[1727301964367,0.18,63495.0,63494.0,0.078751]
[1727301964567,0.194,63495.0,63494.0,0.079751]
[1727301965072,0.206,63495.0,63494.0,0.078751]
[1727301966072,0.5668,63495.0,63493.0,0.080751]
[1727301966376,0.3868,63495.0,63493.0,0.080751]
[1727301966575,0.3878,63495.0,63494.0,0.001]
[1727301966874,0.027,63495.0,63494.0,0.3628]
[1727301967462,0.013,63495.0,63494.0,0.3618]
[1727301967669,0.026,63495.0,63494.0,0.3608]
[1727301968172,0.014,63495.0,63494.0,0.3608]
[1727301968373,0.026,63495.0,63494.0,0.3628]
[1727301968573,0.026,63495.0,63494.0,0.441551]
[1727301969872,0.026,63495.0,63494.0,0.080751]
[1727301970070,0.026,63495.0,63494.0,0.441551]
[1727301970874,0.026,63495.0,63494.0,0.080751]
[1727301971075,0.026,63495.0,63494.0,0.441551]
[1727301974778,0.206,63495.0,63494.0,0.441551]
[1727301975476,0.206,63495.0,63494.0,0.3628]
[1727301975477,0.28475,63495.0,63494.0,0.3628]
[1727301975670,0.026,63495.0,63494.0,0.3628]
[1727301975871,0.026,63495.0,63494.0,0.441551]
[1727301976878,0.026,63495.0,63494.0,0.080751]
[1727301980383,0.3608,63500.0,63499.0,0.078745]
[1727301982688,0.3688,63500.0,63499.0,0.079745]
[1727301983584,0.3788,63500.0,63499.0,0.080745]
[1727301987988,0.001,63505.0,63504.0,0.078739]
[1727301988178,0.0037,63514.0,63513.0,0.078727]
[1727301988485,0.3608,63518.0,63513.0,0.18]
[1727301988689,0.3608,63518.0,63517.0,0.078723]
[1727301989792,0.3608,63518.0,63514.0,0.06282538]
[1727301989793,0.652072,63526.0,63515.0,0.06282538]
[1727301989997,0.3608,63526.0,63525.0,0.078713]
[1727301990887,0.3628,63526.0,63525.0,0.078713]
[1727301991589,0.3638,63526.0,63525.0,0.079713]
[1727301992490,0.3618,63526.0,63525.0,0.080713]
[1727301993090,0.3608,63526.0,63525.0,0.079713]
[1727301993281,0.3678,63526.0,63525.0,0.080713]
[1727301993683,0.3608,63526.0,63525.0,0.079713]
[1727301993897,0.3618,63526.0,63525.0,0.079713]
[1727301994086,0.3618,63526.0,63525.0,0.078713]
[1727301994596,0.3648,63526.0,63525.0,0.078713]
[1727301995692,0.3648,63526.0,63521.0,0.04700927]
[1727301995693,0.3668,63526.0,63521.0,0.078717]
[1727301995899,0.078716,63522.0,63519.0,0.04700927]
[1727301996191,0.18,63523.0,63518.0,0.078721]
[1727301996396,0.18,63523.0,63519.0,0.07872]
[1727301996397,0.078718,63521.0,63519.0,0.07872]
[1727301998095,0.085718,63521.0,63519.0,0.07972]
[1727301998496,0.3608,63520.0,63519.0,0.07972]
[1727301999298,0.3608,63520.0,63519.0,0.08072]
[1727302000687,0.439519,63520.0,63519.0,0.08072]
[1727302000892,0.446519,63520.0,63519.0,0.08072]
[1727302001402,0.446519,63520.0,63519.0,0.002]
[1727302001703,0.3678,63520.0,63519.0,0.08072]
[1727302002200,0.3678,63520.0,63519.0,0.07972]
[1727302002505,0.3628,63520.0,63519.0,0.07972]
[1727302002702,0.009,63520.0,63519.0,0.44152]
[1727302003505,0.009,63520.0,63519.0,0.08072]
[1727302003699,0.007,63520.0,63519.0,0.07972]
[1727302003909,0.009,63520.0,63519.0,0.44152]
[1727302004810,0.007,63520.0,63519.0,0.44052]
[1727302005011,0.007,63520.0,63519.0,0.44252]
[1727302005198,0.007,63520.0,63519.0,0.4671344]
[1727302005695,0.06260684,63523.0,63522.0,0.078716]
[1727302007411,0.06760684,63523.0,63522.0,0.078716]
[1727302007610,0.06960684,63523.0,63522.0,0.079716]
[1727302009810,0.007,63523.0,63522.0,0.079716]
[1727302013003,0.085715,63523.0,63522.0,0.079716]
[1727302014314,0.16397356,63523.0,63522.0,0.079716]
[1727302014503,0.085715,63523.0,63522.0,0.079716]
[1727302014709,0.16412741,63523.0,63522.0,0.079716]
[1727302014905,0.085715,63523.0,63522.0,0.079716]
[1727302015414,0.1112387,63523.0,63522.0,0.079716]
[1727302017719,0.15413303,63523.0,63522.0,0.079716]
[1727302018023,0.20393573,63523.0,63522.0,0.001]
[1727302018225,0.20393573,63523.0,63522.0,0.079716]
[1727302018414,0.32965094,63523.0,63522.0,0.079716]
[1727302018608,0.20393573,63523.0,63522.0,0.079716]
[1727302018811,0.32985806,63523.0,63522.0,0.079716]
[1727302019419,0.20384435,63523.0,63522.0,0.079716]
[1727302021115,0.085715,63523.0,63522.0,0.079716]
[1727302021313,0.11123887,63523.0,63522.0,0.079716]
[1727302027825,0.111239,63523.0,63522.0,0.079716]
[1727302028127,0.20572282,63523.0,63522.0,0.001]
[1727302028334,0.032524,63523.0,63522.0,0.079716]
[1727302028628,0.10148472,63523.0,63522.0,0.079716]
[1727302028827,0.12700872,63523.0,63522.0,0.079716]
[1727302029130,0.12532467,63523.0,63522.0,0.079716]
[1727302029315,0.07546646,63523.0,63522.0,0.079716]
[1727302029626,0.07546646,63523.0,63522.0,0.18304478]
[1727302029833,0.032524,63523.0,63522.0,0.18304493]
[1727302030526,0.007,63523.0,63522.0,0.18304493]
[1727302031122,0.007,63523.0,63522.0,0.10432893]
[1727302031327,0.032524,63523.0,63522.0,0.14371089]
[1727302032228,0.032524,63523.0,63522.0,0.22242689]
[1727302033332,0.032524,63523.0,63522.0,0.27165429]
[1727302034032,0.10143031,63523.0,63522.0,0.27165429]
[1727302034221,0.032524,63523.0,63522.0,0.27165429]
[1727302034417,0.032524,63523.0,63522.0,0.22242689]
[1727302034621,0.10141896,63523.0,63522.0,0.22242689]
[1727302035439,0.12694296,63523.0,63522.0,0.22242689]
[1727302036128,0.007,63523.0,63522.0,0.22242689]
[1727302036633,0.007,63523.0,63522.0,0.158432]
[1727302036820,0.007,63523.0,63522.0,0.22242526]
[1727302037933,0.007,63523.0,63522.0,0.25472526]
[1727302040124,0.007,63523.0,63522.0,0.21534491]
[1727302040325,0.007,63523.0,63522.0,0.14370957]
[1727302040542,0.007,63523.0,63522.0,0.079716]
[1727302041034,0.205715,63523.0,63522.0,0.079716]
[1727302041227,0.205715,63523.0,63522.0,0.001]
[1727302041534,0.23123855,63523.0,63522.0,0.001]
[1727302041942,0.23123904,63523.0,63522.0,0.001]
[1727302042425,0.11123938,63523.0,63522.0,0.079716]
[1727302042623,0.16437381,63523.0,63522.0,0.079716]
[1727302043347,0.1112392,63523.0,63522.0,0.079716]
[1727302043533,0.085715,63523.0,63522.0,0.079716]
[1727302043730,0.11123907,63523.0,63522.0,0.079716]
[1727302044039,0.085715,63523.0,63522.0,0.079716]
[1727302044242,0.11123911,63523.0,63522.0,0.079716]
[1727302048731,0.007,63523.0,63522.0,0.259716]
[1727302049734,0.007,63523.0,63522.0,0.079716]
[1727302050531,0.08565232,63523.0,63522.0,0.079716]
[1727302050742,0.007,63523.0,63522.0,0.079716]
[1727302050936,0.08565232,63523.0,63522.0,0.079716]
[1727302051141,0.007,63523.0,63522.0,0.079716]
[1727302051344,0.07565957,63523.0,63522.0,0.079716]
[1727302054639,0.03252337,63523.0,63522.0,0.079716]
[1727302054836,0.0757999,63523.0,63522.0,0.079716]
[1727302059344,0.007,63523.0,63522.0,0.079716]
[1727302062545,0.007,63523.0,63522.0,0.199716]
[1727302063345,0.007,63523.0,63522.0,0.278432]
[1727302063547,0.007,63523.0,63522.0,0.40492572]
[1727302063740,0.007,63523.0,63522.0,0.4677511]
[1727302064539,0.007,63523.0,63522.0,0.5169765]
[1727302064939,0.007,63523.0,63522.0,0.53286712]
[1727302065140,0.06292372,63528.0,63527.0,0.07871]
[1727302065452,0.06292372,63530.0,63529.0,0.157416]
[1727302065744,0.06292372,63531.0,63530.0,0.157412]
[1727302065947,0.06292372,63531.0,63530.0,0.39062165]
[1727302066545,0.02551594,63538.0,63534.0,0.078701]